{"text_format":"1","workbook":"xlsx","n_sheets":3,"sheets":["Macro1","Front Page","VTE Risk Assessment Oct 2013"],"not_rendered":{"charts":0,"images":1,"macros":0,"external_links":0,"defined_names":7,"comments":0,"pivot_tables":0},"unopened":[],"bounds":{"document_bytes":16777216,"sheet_cells":100000,"rows_first":2000,"rows_last":500,"rows_between":2000,"halvings":0,"cell_chars":16384,"cell_head_chars":4096},"cells_cut":0,"cells_raw":0,"read":"whole","date_system":"1900"}

{"sheet":"Macro1","index":0,"n_rows":47,"n_cols":2,"rows_kept":47,"cut":false,"hidden":true,"merged":[]}
["Macro1","Auto_Open"]
[{"$f":"ALIGNMENT(2,FALSE,1,0,FALSE)","v":true},{"$f":"ERROR(2,Recover)","v":true}]
[{"$f":"BORDER(0,1,1,1,1,0,0,1,1,1,1)","v":true},{"$f":"WORKBOOK.SELECT(\"SHA and Self Trust\")","v":true}]
[{"$f":"PATTERNS(1,0,2,TRUE)","v":true},{"$f":"WINDOW.RESTORE()","v":true}]
[{"$f":"FORMAT.FONT(\"Arial\",11,FALSE,FALSE,FALSE,FALSE,1,FALSE,FALSE)","v":true},{"$f":"WINDOW.SIZE(82.5,42.75)","v":true}]
[{"$f":"RETURN()","v":true},{"$f":"WORKBOOK.HIDE(\"Macro1\",TRUE)","v":true}]
[null,{"$f":"EDIT.COLOR(1,0,0,0)","v":true}]
["Macro2",{"$f":"EDIT.COLOR(3,255,0,0)","v":true}]
[{"$f":"ALIGNMENT(4,FALSE,1,0,FALSE)","v":true},{"$f":"EDIT.COLOR(4,212,212,212)","v":true}]
[{"$f":"BORDER(0,1,1,1,1,0,0,1,1,1,1)","v":true},{"$f":"EDIT.COLOR(5,247,247,231)","v":true}]
[{"$f":"PATTERNS(1,0,2,TRUE)","v":true},{"$f":"EDIT.COLOR(2,255,255,255)","v":true}]
[{"$f":"FORMAT.FONT(\"Arial\",11,FALSE,FALSE,FALSE,FALSE,1,FALSE,FALSE)","v":true},{"$f":"RUN(\"Macro5\")","v":{"$error":"#N/A"}}]
[{"$f":"RETURN()","v":true},{"$f":"DELETE.NAME(\"Auto_Open\")","v":true}]
[null,{"$f":"WORKBOOK.SELECT(\"SHA and Self Trust\")","v":true}]
["Macro3",{"$f":"SELECT(\"R1:R65536\")","v":true}]
[{"$f":"ALIGNMENT(2,FALSE,1,0,FALSE)","v":true},{"$f":"COLUMN.WIDTH(,,,3)","v":true}]
[{"$f":"BORDER(0,1,1,1,1,0,0,1,1,1,1)","v":true},{"$f":"ROW.HEIGHT(,,,3)","v":true}]
[{"$f":"PATTERNS(1,0,5,TRUE)","v":true},{"$f":"SELECT(\"R1C1\")","v":true}]
[{"$f":"FORMAT.FONT(\"Arial\",11,FALSE,FALSE,FALSE,FALSE,1,FALSE,FALSE)","v":true},{"$f":"WINDOW.MAXIMIZE()","v":true}]
[{"$f":"RETURN()","v":true},{"$f":"RETURN()","v":true}]
[]
["Macro4"]
[{"$f":"ALIGNMENT(2,TRUE,1,0,FALSE)","v":true}]
[{"$f":"BORDER(0,1,1,1,1,0,0,1,1,1,1)","v":true}]
[{"$f":"PATTERNS(1,0,5,TRUE)","v":true}]
[{"$f":"FORMAT.FONT(\"Arial\",11,FALSE,FALSE,FALSE,FALSE,1,FALSE,FALSE)","v":true}]
[{"$f":"RETURN()","v":true}]
[]
["Macro5"]
[{"$f":"WORKBOOK.SELECT(\"SHA and Self Trust\")","v":true}]
[{"$f":"SELECT(\"R4C1:R321C4,R4C8:R321C8\")","v":true}]
[{"$f":"RUN(\"Macro1\")","v":{"$error":"#N/A"}}]
[{"$f":"SELECT(\"R4C5:R321C7\")","v":true}]
[{"$f":"RUN(\"Macro2\")","v":{"$error":"#N/A"}}]
[{"$f":"SELECT(\"R4C7:R321C7\")","v":true}]
[{"$f":"FORMAT.NUMBER(\"#####################################0.00%\")","v":true}]
[{"$f":"SELECT(\"R4C5:R321C5,R4C6:R321C6\")","v":true}]
[{"$f":"FORMAT.NUMBER(\"##########0\")","v":true}]
[{"$f":"SELECT(\"R1C1:R1C2,R3C1:R3C4,R3C8\")","v":true}]
[{"$f":"RUN(\"Macro3\")","v":{"$error":"#N/A"}}]
[{"$f":"SELECT(\"R3C5:R3C7\")","v":true}]
[{"$f":"RUN(\"Macro4\")","v":{"$error":"#N/A"}}]
[{"$f":"RETURN()","v":true}]
[]
["Recover"]
[{"$f":"GOTO(OFFSET(LAST.ERROR(),1,0))","v":false}]
[{"$f":"RETURN()","v":true}]

{"sheet":"Front Page","index":1,"n_rows":17,"n_cols":2,"rows_kept":17,"cut":false,"hidden":false,"merged":[]}
["Title:","VTE Risk Assessment Data Collection October 2013"]
[]
[]
["Summary:","This monthly report presents the October 2013 data from the NHS England's data collection on the number of patients admitted as inpatients in the month who have ben risk assessed for VTE on admission to hospital using the criteria in the National VTE Risk Assessment Tool \n\nAll providers of NHS-funded acute care and Independent Sector (IS) providers are required to return data, and the collection has been mandatory since June 2010\n"]
[]
["Period:","October 2013"]
[]
["Geographical coverage: ","England"]
[]
["Source:","UNIFY2"]
[]
["Published","10th January 2014"]
[]
["Guidance","The latest version of the guidance can be found at"]
[null,"http://webarchive.nationalarchives.gov.uk/20130402145952/http://media.dh.gov.uk/network/261/files/2012/01/guidance-notes-for-vte-data-collection-updated-march-2013.pdf"]
[]
["Contact","The Government Statistical Service (GSS) statistician with overall responsibility for this report is:\nAlexandra Lazaro\n\nEmail: vte@dh.gsi.gov.uk\n"]

{"sheet":"VTE Risk Assessment Oct 2013","index":2,"n_rows":335,"n_cols":6,"rows_kept":335,"cut":false,"hidden":false,"merged":[[5,0,7,2],[5,3,5,5],[9,3,9,5],[176,3,176,5]]}
["VTE Risk Assessment October 2013"]
[]
["* Entries have been marked as ' - ' where the provider either did not submit a return for that specific month or was not recording the assessments carried out for the data collection"]
["* Entries have been marked as \" Nil return \" where the Provider submitted a data return, but was unable to provide figures bases on a census of all patients, or where there were no admissions during the quarter"]
[]
["England ",null,null,"October"]
[null,null,null," Number of VTE-assessed Admissions "," Total Admissions ","Percentage of admitted patients risk-assessed for VTE"]
[null,null,null,1162883,1212302,0.95923540503933835]
[]
[null,null,null,"October"]
["Org Code","Region","Organisation Name"," Number of VTE-assessed Admissions "," Total Admissions ","Percentage of admitted patients risk-assessed for VTE"]
["REM","North of England ","AINTREE UNIVERSITY HOSPITAL NHS FOUNDATION TRUST",6142,6475,0.94857142857142907]
["RCF","North of England ","AIREDALE NHS FOUNDATION TRUST",4441,4499,0.98710824627694993]
["RTK","South of England","ASHFORD AND ST PETER'S HOSPITALS NHS FOUNDATION TRUST",4918,5087,0.96677806172596803]
["RF4","London","BARKING, HAVERING AND REDBRIDGE UNIVERSITY HOSPITALS NHS TRUST",10317,10803,0.95501249652874198]
["RVL","London","BARNET AND CHASE FARM HOSPITALS NHS TRUST",6560,6862,0.95598950743223499]
["RFF","North of England ","BARNSLEY HOSPITAL NHS FOUNDATION TRUST",4671,4892,0.95482420278004898]
["R1H","London","BARTS HEALTH NHS TRUST",29525,30854,0.95692616840604094]
["RDD","Midlands and East of England","BASILDON AND THURROCK UNIVERSITY HOSPITALS NHS FOUNDATION TRUST",8065,8205,0.98293723339427208]
["RC1","Midlands and East of England","BEDFORD HOSPITAL NHS TRUST",3668,3827,0.95845309642017196]
["RLU","Midlands and East of England","BIRMINGHAM WOMEN'S NHS FOUNDATION TRUST",1283,1317,0.97418375094912701]
["RXL","North of England ","BLACKPOOL TEACHING HOSPITALS NHS FOUNDATION TRUST",8039,8054,0.99813757139309711]
["RMC","North of England ","BOLTON NHS FOUNDATION TRUST",6288,6598,0.953016065474386]
["RAE","North of England ","BRADFORD TEACHING HOSPITALS NHS FOUNDATION TRUST",8566,8844,0.96856625961103615]
["RY2","North of England ","BRIDGEWATER COMMUNITY HEALTHCARE NHS TRUST",31,31,1]
["RXH","South of England","BRIGHTON AND SUSSEX UNIVERSITY HOSPITALS NHS TRUST",2638,2752,0.95857558139534904]
["RXQ","South of England","BUCKINGHAMSHIRE HEALTHCARE NHS TRUST",4167,4368,0.95398351648351598]
["RJF","Midlands and East of England","BURTON HOSPITALS NHS FOUNDATION TRUST",4518,4593,0.98367080339647306]
["RWY","North of England ","CALDERDALE AND HUDDERSFIELD NHS FOUNDATION TRUST",8904,9359,0.95138369483919194]
["RGT","Midlands and East of England","CAMBRIDGE UNIVERSITY HOSPITALS NHS FOUNDATION TRUST",14751,14898,0.99013290374546892]
["RYV","Midlands and East of England","CAMBRIDGESHIRE COMMUNITY SERVICES NHS TRUST",119,120,0.99166666666666703]
["RW3","North of England ","CENTRAL MANCHESTER UNIVERSITY HOSPITALS NHS FOUNDATION TRUST",10854,11736,0.92484662576687104]
["RQM","London","CHELSEA AND WESTMINSTER HOSPITAL NHS FOUNDATION TRUST",4257,4404,0.96662125340599503]
["RFS","Midlands and East of England","CHESTERFIELD ROYAL HOSPITAL NHS FOUNDATION TRUST",5446,5645,0.96474756421612007]
["RLN","North of England ","CITY HOSPITALS SUNDERLAND NHS FOUNDATION TRUST",9093,9540,0.95314465408805005]
["RDE","Midlands and East of England","COLCHESTER HOSPITAL UNIVERSITY NHS FOUNDATION TRUST",7227,7602,0.95067087608524103]
["RJR","North of England ","COUNTESS OF CHESTER HOSPITAL NHS FOUNDATION TRUST",6625,6723,0.98542317417819403]
["RXP","North of England ","COUNTY DURHAM AND DARLINGTON NHS FOUNDATION TRUST",10214,10720,0.95279850746268702]
["RJ6","London","CROYDON HEALTH SERVICES NHS TRUST",5082,5252,0.96763137852246806]
["RN7","South of England","DARTFORD AND GRAVESHAM NHS TRUST",5183,5437,0.95328306051131106]
["RTG","Midlands and East of England","DERBY HOSPITALS NHS FOUNDATION TRUST",10473,11175,0.93718120805369098]
["RY8","Midlands and East of England","DERBYSHIRE COMMUNITY HEALTH SERVICES NHS TRUST",1571,1579,0.99493350221659305]
["RP5","North of England ","DONCASTER AND BASSETLAW HOSPITALS NHS FOUNDATION TRUST",8583,9031,0.95039309046617204]
["RBD","South of England","DORSET COUNTY HOSPITAL NHS FOUNDATION TRUST",7637,7808,0.97809938524590212]
["RC3","London","EALING HOSPITAL NHS TRUST",2935,3015,0.97346600331675015]
["RWH","Midlands and East of England","EAST AND NORTH HERTFORDSHIRE NHS TRUST",6186,6253,0.98928514313129701]
["RJN","North of England ","EAST CHESHIRE NHS TRUST",2577,2730,0.94395604395604404]
["RVV","South of England","EAST KENT HOSPITALS UNIVERSITY NHS FOUNDATION TRUST",8225,8562,0.96064003737444492]
["RXR","North of England ","EAST LANCASHIRE HOSPITALS NHS TRUST",9892,10111,0.978340421323311]
["RXC","South of England","EAST SUSSEX HEALTHCARE NHS TRUST",7520,7760,0.96907216494845416]
["RVR","London","EPSOM AND ST HELIER UNIVERSITY HOSPITALS NHS TRUST",6975,7361,0.94756147262600199]
["RDU","South of England","FRIMLEY PARK HOSPITAL NHS FOUNDATION TRUST",7510,7728,0.97179089026915111]
["RR7","North of England ","GATESHEAD HEALTH NHS FOUNDATION TRUST",4540,4772,0.95138306789605998]
["RLT","Midlands and East of England","GEORGE ELIOT HOSPITAL NHS TRUST",2703,2845,0.95008787346221402]
["RTE","South of England","GLOUCESTERSHIRE HOSPITALS NHS FOUNDATION TRUST",5825,6225,0.93574297188755007]
["RN3","South of England","GREAT WESTERN HOSPITALS NHS FOUNDATION TRUST",6500,6758,0.9618230245634799]
["RJ1","London","GUY'S AND ST THOMAS' NHS FOUNDATION TRUST",19253,20019,0.96173635046705597]
["RN5","South of England","HAMPSHIRE HOSPITALS NHS FOUNDATION TRUST",8064,8639,0.93344137052899601]
["RCD","North of England ","HARROGATE AND DISTRICT NHS FOUNDATION TRUST",3555,3633,0.97853014037985098]
["RR1","Midlands and East of England","HEART OF ENGLAND NHS FOUNDATION TRUST",14929,15988,0.9337628221165869]
["RD7","South of England","HEATHERWOOD AND WEXHAM PARK HOSPITALS NHS FOUNDATION TRUST",5763,6004,0.95986009327115307]
["RQQ","Midlands and East of England","HINCHINGBROOKE HEALTH CARE NHS TRUST",3242,3293,0.98451260249013117]
["RQX","London","HOMERTON UNIVERSITY HOSPITAL NHS FOUNDATION TRUST",2287,2409,0.94935657949356611]
["RWA","North of England ","HULL AND EAST YORKSHIRE HOSPITALS NHS TRUST",11793,12224,0.96474149214659699]
["RYJ","London","IMPERIAL COLLEGE HEALTHCARE NHS TRUST",13771,14224,0.96815241844769406]
["RGQ","Midlands and East of England","IPSWICH HOSPITAL NHS TRUST",6227,6352,0.98032115869017589]
["R1F","South of England","ISLE OF WIGHT NHS TRUST",1007,1115,0.90313901345291503]
["RGP","Midlands and East of England","JAMES PAGET UNIVERSITY HOSPITALS NHS FOUNDATION TRUST",4428,4517,0.98029665707327907]
["RNQ","Midlands and East of England","KETTERING GENERAL HOSPITAL NHS FOUNDATION TRUST",5706,5937,0.96109146033350201]
["RJZ","London","KING'S COLLEGE HOSPITAL NHS FOUNDATION TRUST",20633,21923,0.94115768827258994]
["RXN","North of England ","LANCASHIRE TEACHING HOSPITALS NHS FOUNDATION TRUST",18154,18860,0.96256627783669102]
["RR8","North of England ","LEEDS TEACHING HOSPITALS NHS TRUST",16103,16739,0.96200489873947104]
["RJ2","London","LEWISHAM HEALTHCARE NHS TRUST",7840,8422,0.93089527428164298]
["RY5","Midlands and East of England","LINCOLNSHIRE COMMUNITY HEALTH SERVICES NHS TRUST",120,130,0.92307692307692302]
["RBQ","North of England ","LIVERPOOL HEART AND CHEST NHS FOUNDATION TRUST",1184,1223,0.96811120196238809]
["REP","North of England ","LIVERPOOL WOMEN'S NHS FOUNDATION TRUST",1701,1756,0.96867881548974899]
["RC9","Midlands and East of England","LUTON AND DUNSTABLE HOSPITAL NHS FOUNDATION TRUST",6165,6465,0.95359628770301608]
["RWF","South of England","MAIDSTONE AND TUNBRIDGE WELLS NHS TRUST",8659,9111,0.95038963889803496]
["RPA","South of England","MEDWAY NHS FOUNDATION TRUST",3244,3384,0.95862884160756501]
["RBT","North of England ","MID CHESHIRE HOSPITALS NHS FOUNDATION TRUST",4823,4983,0.96789082881798105]
["RQ8","Midlands and East of England","MID ESSEX HOSPITAL SERVICES NHS TRUST",6359,6463,0.98390840167105109]
["RJD","Midlands and East of England","MID STAFFORDSHIRE NHS FOUNDATION TRUST",4427,4564,0.96998247151621408]
["RXF","North of England ","MID YORKSHIRE HOSPITALS NHS TRUST",9306,10846,0.85801217038539601]
["RD8","Midlands and East of England","MILTON KEYNES HOSPITAL NHS FOUNDATION TRUST",3912,4075,0.96]
["RP6","London","MOORFIELDS EYE HOSPITAL NHS FOUNDATION TRUST",2571,2597,0.98998844820947196]
["RM1","Midlands and East of England","NORFOLK AND NORWICH UNIVERSITY HOSPITALS NHS FOUNDATION TRUST",15186,15474,0.98138813493602206]
["RY3","Midlands and East of England","NORFOLK COMMUNITY HEALTH AND CARE NHS TRUST",249,253,0.98418972332015808]
["RVJ","South of England","NORTH BRISTOL NHS TRUST",14527,15202,0.95559794763846906]
["RNL","North of England ","NORTH CUMBRIA UNIVERSITY HOSPITALS NHS TRUST",4789,5700,0.84017543859649102]
["RAP","London","NORTH MIDDLESEX UNIVERSITY HOSPITAL NHS TRUST",3963,4109,0.964468240447798]
["RVW","North of England ","NORTH TEES AND HARTLEPOOL NHS FOUNDATION TRUST",6292,6602,0.95304453196001204]
["RV8","London","NORTH WEST LONDON HOSPITALS NHS TRUST",8939,9636,0.92766708177667101]
["RNS","Midlands and East of England","NORTHAMPTON GENERAL HOSPITAL NHS TRUST",6125,6286,0.97438752783964411]
["RBZ","South of England","NORTHERN DEVON HEALTHCARE NHS TRUST",3660,3735,0.97991967871485897]
["RJL","North of England ","NORTHERN LINCOLNSHIRE AND GOOLE HOSPITALS NHS FOUNDATION TRUST",8893,9236,0.96286271113035893]
["RTF","North of England ","NORTHUMBRIA HEALTHCARE NHS FOUNDATION TRUST",7977,8603,0.92723468557479893]
["RX1","Midlands and East of England","NOTTINGHAM UNIVERSITY HOSPITALS NHS TRUST",13561,14243,0.95211682931966601]
["RTH","South of England","OXFORD UNIVERSITY HOSPITALS NHS TRUST",18404,19269,0.95510924282526288]
["RGM","Midlands and East of England","PAPWORTH HOSPITAL NHS FOUNDATION TRUST",1866,1881,0.99202551834130803]
["RW6","North of England ","PENNINE ACUTE HOSPITALS NHS TRUST",14059,14634,0.96070794041273699]
["RGN","Midlands and East of England","PETERBOROUGH AND STAMFORD HOSPITALS NHS FOUNDATION TRUST",6007,6231,0.96405071417108001]
["RK9","South of England","PLYMOUTH HOSPITALS NHS TRUST",8205,8636,0.95009263547938905]
["RD3","South of England","POOLE HOSPITAL NHS FOUNDATION TRUST",2396,2464,0.97240259740259705]
["RHU","South of England","PORTSMOUTH HOSPITALS NHS TRUST",10532,10951,0.96173865400420111]
["RPC","South of England","QUEEN VICTORIA HOSPITAL NHS FOUNDATION TRUST",34,34,1]
["RHW","South of England","ROYAL BERKSHIRE NHS FOUNDATION TRUST",10765,11266,0.95552991301260393]
["RT3","London","ROYAL BROMPTON AND HAREFIELD NHS FOUNDATION TRUST",2689,2800,0.96035714285714302]
["REF","South of England","ROYAL CORNWALL HOSPITALS NHS TRUST",10418,10935,0.95272062185642403]
["RH8","South of England","ROYAL DEVON AND EXETER NHS FOUNDATION TRUST",9391,9789,0.95934211870466912]
["RAL","London","ROYAL FREE LONDON NHS FOUNDATION TRUST",15603,15990,0.97579737335834904]
["RQ6","North of England ","ROYAL LIVERPOOL AND BROADGREEN UNIVERSITY HOSPITALS NHS TRUST",6906,7352,0.93933623503808505]
["RBB","South of England","ROYAL NATIONAL HOSPITAL FOR RHEUMATIC DISEASES NHS FOUNDATION TRUST",227,227,1]
["RAN","London","ROYAL NATIONAL ORTHOPAEDIC HOSPITAL NHS TRUST",643,645,0.99689922480620208]
["RA2","South of England","ROYAL SURREY COUNTY HOSPITAL NHS FOUNDATION TRUST",5815,6118,0.95047401111474294]
["RD1","South of England","ROYAL UNITED HOSPITAL BATH NHS TRUST",5067,5320,0.95244360902255598]
["RM3","North of England ","SALFORD ROYAL NHS FOUNDATION TRUST",11262,11690,0.96338751069289996]
["RNZ","South of England","SALISBURY NHS FOUNDATION TRUST",4304,4352,0.98897058823529405]
["RXK","Midlands and East of England","SANDWELL AND WEST BIRMINGHAM HOSPITALS NHS TRUST",8791,9252,0.95017293558149607]
["RHQ","North of England ","SHEFFIELD TEACHING HOSPITALS NHS FOUNDATION TRUST",25375,26673,0.95133655756757807]
["RK5","Midlands and East of England","SHERWOOD FOREST HOSPITALS NHS FOUNDATION TRUST",5558,5898,0.94235334011529304]
["RXW","Midlands and East of England","SHREWSBURY AND TELFORD HOSPITAL NHS TRUST",10478,11004,0.95219920029080296]
["R1D","Midlands and East of England","SHROPSHIRE COMMUNITY HEALTH NHS TRUST",139,144,0.96527777777777812]
["RA9","South of England","SOUTH DEVON HEALTHCARE NHS FOUNDATION TRUST",4992,5260,0.94904942965779504]
["RWN","Midlands and East of England","SOUTH ESSEX PARTNERSHIP UNIVERSITY NHS FOUNDATION TRUST",86,86,1]
["RTR","North of England ","SOUTH TEES HOSPITALS NHS FOUNDATION TRUST",10280,10782,0.95344092005193803]
["RE9","North of England ","SOUTH TYNESIDE NHS FOUNDATION TRUST",2587,2721,0.95075339948548299]
["RJC","Midlands and East of England","SOUTH WARWICKSHIRE NHS FOUNDATION TRUST",4444,4657,0.95426240068713808]
["RAJ","Midlands and East of England","SOUTHEND UNIVERSITY HOSPITAL NHS FOUNDATION TRUST",6212,6586,0.94321287579714497]
["RW1","South of England","SOUTHERN HEALTH NHS FOUNDATION TRUST",762,785,0.97070063694267505]
["RVY","North of England ","SOUTHPORT AND ORMSKIRK HOSPITAL NHS TRUST",4532,4758,0.95250105086170711]
["RJ7","London","ST GEORGE'S HEALTHCARE NHS TRUST",9720,10245,0.9487554904831631]
["RBN","North of England ","ST HELENS AND KNOWSLEY HOSPITALS NHS TRUST",7088,7439,0.95281623874176602]
["RWJ","North of England ","STOCKPORT NHS FOUNDATION TRUST",6460,6734,0.959310959310959]
["RTP","South of England","SURREY AND SUSSEX HEALTHCARE NHS TRUST",5685,5909,0.96209172448806901]
["RBA","South of England","TAUNTON AND SOMERSET NHS FOUNDATION TRUST",5591,5908,0.94634394041976999]
["RBV","North of England ","THE CHRISTIE NHS FOUNDATION TRUST",1600,1628,0.98280098280098305]
["REN","North of England ","THE CLATTERBRIDGE CANCER CENTRE NHS FOUNDATION TRUST",337,344,0.97965116279069797]
["RNA","Midlands and East of England","THE DUDLEY GROUP OF HOSPITALS NHS FOUNDATION TRUST",9458,9927,0.95275511231993604]
["RAS","London","THE HILLINGDON HOSPITALS NHS FOUNDATION TRUST",4155,4348,0.95561177552897902]
["RTD","North of England ","THE NEWCASTLE UPON TYNE HOSPITALS NHS FOUNDATION TRUST",11345,11538,0.983272664239903]
["RQW","Midlands and East of England","THE PRINCESS ALEXANDRA HOSPITAL NHS TRUST",4110,4176,0.98419540229885116]
["RCX","Midlands and East of England","THE QUEEN ELIZABETH HOSPITAL, KING'S LYNN. NHS FOUNDATION TRUST",5508,5657,0.97366095103411698]
["RL1","Midlands and East of England","THE ROBERT JONES AND AGNES HUNT ORTHOPAEDIC HOSPITAL NHS FOUNDATION TRUST",1299,1301,0.99846272098385913]
["RFR","North of England ","THE ROTHERHAM NHS FOUNDATION TRUST",4794,4906,0.97717081125152905]
["RDZ","South of England","THE ROYAL BOURNEMOUTH AND CHRISTCHURCH HOSPITALS NHS FOUNDATION TRUST",9076,9623,0.94315701964044507]
["RPY","London","THE ROYAL MARSDEN NHS FOUNDATION TRUST",1312,1371,0.95696571845368295]
["RRJ","Midlands and East of England","THE ROYAL ORTHOPAEDIC HOSPITAL NHS FOUNDATION TRUST",964,1000,0.96400000000000008]
["RL4","Midlands and East of England","THE ROYAL WOLVERHAMPTON HOSPITALS NHS TRUST",9565,9780,0.97801635991819991]
["RET","North of England ","THE WALTON CENTRE NHS FOUNDATION TRUST",482,505,0.95445544554455397]
["RKE","London","THE WHITTINGTON HOSPITAL NHS TRUST",3668,3854,0.95173845355474795]
["RWD","Midlands and East of England","UNITED LINCOLNSHIRE HOSPITALS NHS TRUST",10299,10967,0.93908999726452103]
["RRV","London","UNIVERSITY COLLEGE LONDON HOSPITALS NHS FOUNDATION TRUST",11246,11792,0.95369742198100405]
["RJE","Midlands and East of England","UNIVERSITY HOSPITAL OF NORTH STAFFORDSHIRE NHS TRUST",11452,11518,0.99426983851363104]
["RM2","North of England ","UNIVERSITY HOSPITAL OF SOUTH MANCHESTER NHS FOUNDATION TRUST",6721,7012,0.958499714774672]
["RHM","South of England","UNIVERSITY HOSPITAL SOUTHAMPTON NHS FOUNDATION TRUST",9711,10202,0.95187218192511314]
["RRK","Midlands and East of England","UNIVERSITY HOSPITALS BIRMINGHAM NHS FOUNDATION TRUST",9516,9592,0.99207673060884105]
["RA7","South of England","UNIVERSITY HOSPITALS BRISTOL NHS FOUNDATION TRUST",8879,9061,0.97991391678622708]
["RKB","Midlands and East of England","UNIVERSITY HOSPITALS COVENTRY AND WARWICKSHIRE NHS TRUST",10546,10988,0.95977429923553004]
["RWE","Midlands and East of England","UNIVERSITY HOSPITALS OF LEICESTER NHS TRUST",26990,28249,0.95543205069206005]
["RTX","North of England ","UNIVERSITY HOSPITALS OF MORECAMBE BAY NHS FOUNDATION TRUST",7329,7355,0.99646498980285503]
["RBK","Midlands and East of England","WALSALL HEALTHCARE NHS TRUST",4857,5157,0.94182664339732403]
["RWW","North of England ","WARRINGTON AND HALTON HOSPITALS NHS FOUNDATION TRUST",5680,5831,0.97410392728520001]
["RWG","Midlands and East of England","WEST HERTFORDSHIRE HOSPITALS NHS TRUST",7072,7280,0.97142857142857097]
["RFW","London","WEST MIDDLESEX UNIVERSITY HOSPITAL NHS TRUST",3477,3618,0.96102819237147608]
["RGR","Midlands and East of England","WEST SUFFOLK NHS FOUNDATION TRUST",4312,4324,0.99722479185938895]
["RYR","South of England","WESTERN SUSSEX HOSPITALS NHS TRUST",8522,8831,0.96500962518401101]
["RA3","South of England","WESTON AREA HEALTH NHS TRUST","Nil return","Nil return","Nil return"]
["RBL","North of England ","WIRRAL UNIVERSITY TEACHING HOSPITAL NHS FOUNDATION TRUST",9458,9815,0.96362710137544605]
["RWP","Midlands and East of England","WORCESTERSHIRE ACUTE HOSPITALS NHS TRUST",9537,10107,0.9436034431582071]
["RRF","North of England ","WRIGHTINGTON, WIGAN AND LEIGH NHS FOUNDATION TRUST",6342,6559,0.96691568836712904]
["RLQ","Midlands and East of England","WYE VALLEY NHS TRUST",2522,2647,0.9527767283717421]
["RA4","South of England","YEOVIL DISTRICT HOSPITAL NHS FOUNDATION TRUST",3026,3136,0.96492346938775508]
["RCB","North of England ","YORK TEACHING HOSPITAL NHS FOUNDATION TRUST",9829,10120,0.9712450592885381]
[null,null,"Total",1129000,1177728,0.95862542114987503]
[]
[]
["IS Providers",null,null,"October"]
["Org Code","Region","Organisation Name"," Number of VTE-assessed Admissions "," Total Admissions ","Percentage of admitted patients risk-assessed for VTE"]
["NQ1","Midlands and East of England","ANGLIAN COMMUNITY ENTERPRISE COMMUNITY INTEREST COMPANY (ACE CIC)",132,132,1]
["NVC01","South of England","ASHTEAD HOSPITAL",280,280,1]
["NYW01","Midlands and East of England","ASPEN - HOLLY HOUSE HOSPITAL",615,615,1]
["NTP13","Midlands and East of England","BARLBOROUGH NHS TREATMENT CENTRE",209,219,0.954337899543379]
["NWF01","South of England","BENENDEN HOSPITAL",662,664,0.9969879518072291]
["NVC31","Midlands and East of England","BLAKELANDS NHS TREATMENT CENTRE",205,205,1]
["NT402","South of England","BMI - BATH CLINIC",260,260,1]
["NT405","London","BMI - BISHOPS WOOD",176,183,0.96174863387978093]
["NT409","London","BMI - CHELSFIELD PARK HOSPITAL",25,25,1]
["NT414","South of England","BMI - FAWKHAM MANOR HOSPITAL",108,108,1]
["NT417","South of England","BMI - GORING HALL HOSPITAL",253,253,1]
["NT433","South of England","BMI - SARUM ROAD HOSPITAL",85,85,1]
["NT436","London","BMI - SHIRLEY OAKS HOSPITAL",154,154,1]
["NT401","North of England ","BMI - THE ALEXANDRA HOSPITAL",229,229,1]
["NT403","North of England ","BMI - THE BEARDWOOD HOSPITAL",406,406,1]
["NT404","North of England ","BMI - THE BEAUMONT HOSPITAL",355,355,1]
["NT406","London","BMI - THE BLACKHEATH HOSPITAL",75,75,1]
["NT408","South of England","BMI - THE CHAUCER HOSPITAL",127,127,1]
["NT410","London","BMI - THE CHILTERN HOSPITAL",132,132,1]
["NT411","London","BMI - THE CLEMENTINE CHURCHILL HOSPITAL",212,212,1]
["NT412","Midlands and East of England","BMI - THE DROITWICH SPA HOSPITAL",147,147,1]
["NT413","South of England","BMI - THE ESPERANCE HOSPITAL",86,86,1]
["NT415","South of England","BMI - THE FOSCOTE HOSPITAL",54,54,1]
["NT416","London","BMI - THE GARDEN HOSPITAL",69,69,1]
["NT418","South of England","BMI - THE HAMPSHIRE CLINIC",235,235,1]
["NT419","South of England","BMI - THE HARBOUR HOSPITAL",134,134,1]
["NT420","North of England ","BMI - THE HIGHFIELD HOSPITAL",216,216,1]
["NT421","London","BMI - THE KINGS OAK HOSPITAL",134,134,1]
["NT422","London","BMI - THE LONDON INDEPENDENT HOSPITAL",237,237,1]
["NT423","Midlands and East of England","BMI - THE MANOR HOSPITAL",22,22,1]
["NT424","Midlands and East of England","BMI - THE MERIDEN HOSPITAL",166,166,1]
["NT427","Midlands and East of England","BMI - THE PARK HOSPITAL",123,123,1]
["NT428","South of England","BMI - THE PRINCESS MARGARET HOSPITAL",51,51,1]
["NT430","South of England","BMI - THE RIDGEWAY HOSPITAL",288,339,0.84955752212389413]
["NT431","South of England","BMI - THE RUNNYMEDE HOSPITAL",68,72,0.94444444444444398]
["NT432","Midlands and East of England","BMI - THE SANDRINGHAM HOSPITAL",117,117,1]
["NT434","Midlands and East of England","BMI - THE SAXON CLINIC",122,122,1]
["NT435","South of England","BMI - THE SHELBURNE HOSPITAL",65,65,1]
["NT437","London","BMI - THE SLOANE HOSPITAL",13,14,0.92857142857142905]
["NT438","South of England","BMI - THE SOMERFIELD HOSPITAL",98,103,0.95145631067961201]
["NT439","North of England ","BMI - THE SOUTH CHESHIRE PRIVATE HOSPITAL",152,152,1]
["NT443","South of England","BMI - THE WINTERBOURNE HOSPITAL",133,133,1]
["NT440","North of England ","BMI - THORNBURY HOSPITAL",94,98,0.95918367346938804]
["NT441","Midlands and East of England","BMI - THREE SHIRES HOSPITAL",190,190,1]
["NT497","North of England ","BMI GISBURNE PARK HOSPITAL",326,326,1]
["NT446","Midlands and East of England","BMI ST EDMUNDS HOSPITAL",95,95,1]
["NT451","London","BMI THE CAVELL HOSPITAL",115,115,1]
["NT447","North of England ","BMI THE DUCHY HOSPITAL",68,72,0.94444444444444398]
["NT445","Midlands and East of England","BMI THE EDGBASTON HOSPITAL",155,155,1]
["NT448","North of England ","BMI THE HUDDERSFIELD HOSPITAL",130,137,0.94890510948905105]
["NT449","North of England ","BMI THE LANCASTER HOSPITAL",144,144,1]
["NT450","Midlands and East of England","BMI THE LINCOLN HOSPITAL",95,95,1]
["NT457","North of England ","BMI WOODLANDS HOSPITAL",344,344,1]
["NVC24","South of England","BODMIN NHS TREATMENT CENTRE",434,452,0.96017699115044197]
["NVC27","Midlands and East of England","BOSTON NHS TREATMENT CENTRE",210,212,0.99056603773584895]
["NQA","Midlands and East of England","CENTRAL ESSEX COMMUNITY SERVICES",69,71,0.971830985915493]
["NV313","Midlands and East of England","CIRCLE - NOTTINGHAM NHS TREATMENT CENTRE",457,471,0.97027600849256901]
["NV302","South of England","CIRCLE BATH",326,326,1]
["NV323","South of England","CIRCLE READING",195,195,1]
["NTC04","South of England","CIRENCESTER NHS TREATMENT CENTRE",82,82,1]
["NVC28","North of England ","CLIFTON PARK NHS TREATMENT CENTRE",246,249,0.98795180722891607]
["NVC29","North of England ","COBALT NHS TREATMENT CENTRE",414,415,0.99759036144578295]
["NTC03","South of England","DEVIZES NHS TREATMENT CENTRE",119,119,1]
["NVC04","South of England","DUCHY HOSPITAL",470,499,0.94188376753507008]
["NTP23","North of England ","ECCLESHILL NHS TREATMENT CENTRE",382,382,1]
["NTC02","South of England","EMERSONS GREEN NHS TREATMENT CENTRE",368,373,0.98659517426273502]
["NVC05","North of England ","EUXTON HALL HOSPITAL",438,439,0.997722095671982]
["NVG01","North of England ","FAIRFIELD HOSPITAL",143,317,0.45110410094637199]
["NVC06","Midlands and East of England","FITZWILLIAM HOSPITAL",555,564,0.98404255319148903]
["NVC07","North of England ","FULWOOD HALL HOSPITAL",522,525,0.994285714285714]
["NVC25","South of England","HORTON NHS TREATMENT CENTRE",189,191,0.98952879581151798]
["NVC08","South of England","MOUNT STUART HOSPITAL",342,342,1]
["NVC09","South of England","NEW HALL HOSPITAL",381,381,1]
["NVC11","South of England","NORTH DOWNS HOSPITAL",198,200,0.99]
["NTP15","London","NORTH EAST LONDON NHS TREATMENT CENTRE",893,937,0.95304162219850608]
["NVC40","Midlands and East of England","NOTTINGHAM WOODTHORPE HOSPITAL",334,335,0.99701492537313396]
["NT204","Midlands and East of England","NUFFIELD HEALTH, BRENTWOOD HOSPITAL",76,76,1]
["NT205","South of England","NUFFIELD HEALTH, BRIGHTON HOSPITAL",3,3,1]
["NT209","Midlands and East of England","NUFFIELD HEALTH, CAMBRIDGE HOSPITAL",61,62,0.98387096774193505]
["NT211","South of England","NUFFIELD HEALTH, CHELTENHAM HOSPITAL",15,15,1]
["NT212","South of England","NUFFIELD HEALTH, CHICHESTER HOSPITAL",17,17,1]
["NT215","South of England","NUFFIELD HEALTH, EXETER HOSPITAL",103,108,0.95370370370370405]
["NT218","South of England","NUFFIELD HEALTH, HAYWARDS HEATH HOSPITAL",19,19,1]
["NT219","Midlands and East of England","NUFFIELD HEALTH, HEREFORD HOSPITAL",68,68,1]
["NT225","North of England ","NUFFIELD HEALTH, LEEDS HOSPITAL",403,403,1]
["NT226","Midlands and East of England","NUFFIELD HEALTH, LEICESTER HOSPITAL",156,156,1]
["NT230","Midlands and East of England","NUFFIELD HEALTH, NORTH STAFFORDSHIRE HOSPITAL",149,149,1]
["NT233","South of England","NUFFIELD HEALTH, PLYMOUTH HOSPITAL",213,213,1]
["NT235","Midlands and East of England","NUFFIELD HEALTH, SHREWSBURY HOSPITAL",124,124,1]
["NT238","South of England","NUFFIELD HEALTH, TAUNTON HOSPITAL",125,125,1]
["NT237","North of England ","NUFFIELD HEALTH, TEES HOSPITAL",166,168,0.98809523809523803]
["NT210","North of England ","NUFFIELD HEALTH, THE GROSVENOR HOSPITAL, CHESTER",49,49,1]
["NT224","Midlands and East of England","NUFFIELD HEALTH, WARWICKSHIRE HOSPITAL",7,7,1]
["NT214","South of England","NUFFIELD HEALTH, WESSEX HOSPITAL",63,67,0.94029850746268706]
["NT241","South of England","NUFFIELD HEALTH, WOKING HOSPITAL",89,89,1]
["NT242","Midlands and East of England","NUFFIELD HEALTH, WOLVERHAMPTON HOSPITAL",169,169,1]
["NT245","North of England ","NUFFIELD HEALTH, YORK HOSPITAL",78,78,1]
["NT244","South of England","NUFFIELD HOSPITAL OXFORD (THE MANOR)",12,24,0.5]
["NVC12","North of England ","OAKLANDS HOSPITAL",298,298,1]
["NVC13","Midlands and East of England","OAKS HOSPITAL",434,435,0.99770114942528698]
["NQM01","Midlands and East of England","ORTHOPAEDICS & SPINE SPECIALIST HOSPITAL SITE",47,47,1]
["NVC14","North of England ","PARK HILL HOSPITAL",189,189,1]
["NTC05","South of England","PENINSULA NHS TREATMENT CENTRE",217,217,1]
["NVC15","Midlands and East of England","PINEHILL HOSPITAL",312,328,0.95121951219512202]
["NEY","North of England ","PIONEER HEALTHCARE LIMTED",2,2,1]
["NVC16","North of England ","RENACRES HOSPITAL",282,282,1]
["NVC19","Midlands and East of England","RIVERS HOSPITAL",655,656,0.99847560975609806]
["NVC17","Midlands and East of England","ROWLEY HALL HOSPITAL",264,314,0.84076433121019101]
["NTC01","South of England","SHEPTON MALLET NHS TREATMENT CENTRE",287,288,0.99652777777777812]
["NTP11","South of England","SOUTHAMPTON NHS TREATMENT CENTRE",1478,1478,1]
["NT312","South of England","SPIRE ALEXANDRA HOSPITAL",123,123,1]
["NT302","South of England","SPIRE BRISTOL HOSPITAL",147,147,1]
["NT315","Midlands and East of England","SPIRE BUSHEY HOSPITAL",36,36,1]
["NT317","Midlands and East of England","SPIRE CAMBRIDGE LEA HOSPITAL",52,52,1]
["NT324","North of England ","SPIRE CHESHIRE HOSPITAL",227,227,1]
["NT345","South of England","SPIRE CLARE PARK HOSPITAL",61,61,1]
["NT344","South of England","SPIRE DUNEDIN HOSPITAL",90,95,0.94736842105263208]
["NT348","North of England ","SPIRE ELLAND HOSPITAL",266,279,0.95340501792114696]
["NT347","North of England ","SPIRE FYLDE COAST HOSPITAL",325,361,0.90027700831024893]
["NT308","South of England","SPIRE GATWICK PARK HOSPITAL",73,73,1]
["NT316","Midlands and East of England","SPIRE HARPENDEN HOSPITAL",153,153,1]
["NT319","Midlands and East of England","SPIRE HARTSWOOD HOSPITAL",118,118,1]
["NT351","North of England ","SPIRE HULL AND EAST RIDING HOSPITAL",628,628,1]
["NT332","North of England ","SPIRE LEEDS HOSPITAL",271,271,1]
["NT322","Midlands and East of England","SPIRE LEICESTER HOSPITAL",110,122,0.90163934426229497]
["NT321","Midlands and East of England","SPIRE LITTLE ASTON HOSPITAL",131,131,1]
["NT337","North of England ","SPIRE LIVERPOOL HOSPITAL",610,610,1]
["NT327","North of England ","SPIRE MANCHESTER HOSPITAL",131,138,0.94927536231884102]
["NT350","North of England ","SPIRE METHLEY PARK HOSPITAL",341,359,0.94986072423398293]
["NT364","South of England","SPIRE MONTEFIORE HOSPITAL",35,35,1]
["NT325","North of England ","SPIRE MURRAYFIELD HOSPITAL",236,236,1]
["NT318","Midlands and East of England","SPIRE NORWICH HOSPITAL",99,99,1]
["NT320","Midlands and East of England","SPIRE PARKWAY HOSPITAL",115,115,1]
["NT305","South of England","SPIRE PORTSMOUTH HOSPITAL",50,63,0.79365079365079405]
["NT339","North of England ","SPIRE REGENCY HOSPITAL",159,167,0.95209580838323415]
["NT314","London","SPIRE RODING HOSPITAL",178,187,0.95187165775401106]
["NT301","Midlands and East of England","SPIRE SOUTH BANK HOSPITAL",142,142,1]
["NT304","South of England","SPIRE SOUTHAMPTON HOSPITAL",68,68,1]
["NT346","South of England","SPIRE ST SAVIOURS HOSPITAL",170,189,0.89947089947089898]
["NT309","South of England","SPIRE SUSSEX HOSPITAL",36,36,1]
["NT343","South of England","SPIRE THAMES VALLEY HOSPITAL",27,28,0.96428571428571408]
["NT310","South of England","SPIRE TUNBRIDGE WELLS HOSPITAL",53,53,1]
["NT333","North of England ","SPIRE WASHINGTON HOSPITAL",310,310,1]
["NT313","Midlands and East of England","SPIRE WELLESLEY HOSPITAL",178,187,0.95187165775401106]
["NVC18","Midlands and East of England","SPRINGFIELD HOSPITAL",410,431,0.95127610208816704]
["NTPAD","South of England","ST MARY'S NHS TREATMENT CENTRE",597,598,0.99832775919732397]
["NHM","Midlands and East of England","SUFFOLK COMMUNITY HEALTHCARE",92,92,1]
["NVC35","North of England ","TEES VALLEY TREATMENT CENTRE",523,524,0.99809160305343492]
["NVC02","South of England","THE BERKSHIRE INDEPENDENT HOSPITAL",250,252,0.99206349206349209]
["NXM01","South of England","THE HORDER CENTRE - ST JOHNS ROAD",419,420,0.99761904761904807]
["NVC44","Midlands and East of England","THE WESTBOURNE CENTRE",38,38,1]
["NVC20","North of England ","THE YORKSHIRE CLINIC",901,904,0.99668141592920401]
["NVC21","Midlands and East of England","WEST MIDLANDS HOSPITAL",285,288,0.98958333333333293]
["NTP16","South of England","WILL ADAMS NHS TREATMENT CENTRE",306,306,1]
["NVC22","South of England","WINFIELD HOSPITAL",290,296,0.97972972972973005]
["NVC23","Midlands and East of England","WOODLAND HOSPITAL",440,445,0.98876404494382009]
[null,null,"Total",33883,34574,0.98001388326488115]